bitfinex-derivatives/quotes_ETHF0:USTF0_20251003
["timestamp","ask_amount","ask_price","bid_price","bid_amount"]
[1759513606861,3.2078,4491.8,4491.1,3.2078]
[1759513606862,1.049,4491.7,4491.0,0.4506]
[1759513607068,0.40046,4491.6,4490.9,0.227]
[1759513607263,3.2078,4491.1,4490.8,0.00283323]
[1759513607464,0.222,4491.0,4489.4,3.2078]
[1759513607666,3.2078,4489.8,4489.5,0.227]
[1759513607870,4.2568,4490.3,4489.6,1.0496]
[1759513608265,2.83872136,4490.2,4489.6,1.0496]
[1759513608462,2.83872136,4490.2,4489.6,1.05238778]
[1759513608463,2.84075401,4490.2,4489.6,1.05238778]
[1759513608769,0.00203265,4490.2,4489.8,1.0496]
[1759513608968,0.00203265,4490.2,4490.1,1.0496]
[1759513609166,3.9639585,4490.1,4489.6,0.00278778]
[1759513609362,3.9639585,4490.1,4487.5,0.4506]
[1759513609363,1.049,4489.4,4487.9,3.23008238]
[1759513609562,1.049,4488.8,4487.9,3.23008238]
[1759513609966,2.9149585,4488.7,4488.1,0.40078]
[1759513610161,4.2568,4489.4,4488.1,1.0496]
[1759513610364,4.2568,4489.4,4488.5,3.2078]
[1759513610365,2.91953123,4488.8,4488.5,3.2078]
[1759513610564,2.91953123,4489.3,4488.6,1.0496]
[1759513610765,2.91953123,4489.3,4488.5,3.6584]
[1759513610766,3.60842,4489.9,4489.1,1.0496]
[1759513610971,0.40064,4489.7,4489.1,1.0496]
[1759513611167,4.2568,4489.9,4488.7,1.0496]
[1759513611476,0.40068,4489.2,4488.5,4.2574]
[1759513611776,2.88117681,4489.1,4488.6,0.227]
[1759513612170,2.88117681,4489.5,4489.1,1.0496]
[1759513612376,3.2078,4489.9,4489.2,0.227]
[1759513612581,3.2078,4489.9,4489.3,1.0496]
[1759513612770,2.84095358,4489.5,4489.2,0.227]
[1759513612975,1.049,4489.6,4489.2,0.227]
[1759513613370,2.85028051,4489.4,4489.3,4.2574]
[1759513613673,0.00203265,4490.2,4489.5,0.4506]
[1759513613978,2.85028051,4490.1,4489.9,1.0496]
[1759513614270,0.00203265,4490.2,4490.1,1.4502]
[1759513614470,0.00203265,4490.2,4490.1,1.2766]
[1759513614669,0.00203265,4490.2,4490.1,1.0496]
[1759513614874,0.00203265,4490.2,4490.1,0.227]
[1759513615076,2.83470631,4490.2,4490.1,0.227]
[1759513615266,2.83470631,4490.2,4490.1,1.2766]
[1759513615473,0.00203265,4490.2,4490.1,1.2766]
[1759513615969,0.00203265,4490.2,4490.1,6.2766]
[1759513616172,0.00203265,4490.2,4490.1,1.2766]
[1759513616572,0.00203265,4490.2,4490.1,1.0496]
[1759513616776,0.00203265,4490.2,4490.1,1.2766]
[1759513618075,0.00203265,4490.2,4490.1,6.2766]
[1759513618281,3.2078,4491.7,4491.0,1.5002]
[1759513618578,3.2078,4491.7,4491.2,1.0496]
[1759513618776,3.2078,4491.7,4491.1,0.227]
[1759513618973,3.2078,4492.2,4491.1,1.6771]
[1759513619281,2.83944826,4491.6,4491.2,0.227]
[1759513619475,2.87743114,4492.1,4491.3,1.0496]
[1759513619780,3.21067238,4492.2,4492.0,0.4506]
[1759513620073,3.21067238,4492.2,4492.1,1.2766]
[1759513620275,0.00287238,4492.2,4492.1,1.2766]
[1759513620675,3.2078,4493.9,4492.6,1.0496]
[1759513620875,0.40028,4493.7,4493.3,3.2078]
[1759513621081,3.2078,4493.6,4493.4,0.228]
[1759513621377,6.05050773,4493.6,4492.6,3.2078]
[1759513621569,1.44935,4493.0,4492.7,0.228]
[1759513621771,2.84270773,4493.5,4492.7,0.228]
[1759513621973,0.00222286,4493.6,4493.1,0.01224347]
[1759513622174,0.40032,4493.3,4493.1,0.01224347]
[1759513622472,4.00386435,4493.2,4492.1,3.2078]
[1759513622677,1.0964,4491.6,4491.5,3.2078]
[1759513622881,3.2078,4492.2,4491.5,3.4358]
[1759513623080,0.40043,4492.1,4491.5,3.2078]
[1759513623284,1.49686,4491.7,4491.6,0.228]
[1759513623484,3.9467435,4492.1,4491.6,1.37369133]
[1759513623777,2.8503435,4491.7,4491.6,0.23949133]
[1759513623981,1.00078,4493.4,4491.6,0.23949133]
[1759513623982,2.8503435,4492.0,4491.7,1.1342]
[1759513624174,0.40045,4491.8,4491.6,0.01149133]
[1759513624374,2.95338923,4492.2,4491.8,1.1342]
[1759513624578,0.40041,4492.3,4492.1,1.1342]
[1759513624782,1.49682,4492.1,4492.0,0.02298266]
[1759513624980,4.45020923,4492.1,4492.0,0.25098266]
[1759513625278,6.49682,4492.1,4492.0,0.02298266]
[1759513625481,6.49682,4492.1,4491.3,0.00250891]
[1759513625482,1.49688,4491.4,4491.3,0.00250891]
[1759513625679,4.70468,4491.4,4491.3,0.23050891]
[1759513625878,7.53848185,4491.4,4491.3,0.23050891]
[1759513626072,3.93020185,4491.4,4491.3,0.23050891]
[1759513626276,2.83380185,4491.4,4491.3,1.36470891]
[1759513626479,3.2078,4492.1,4491.3,1.36470891]
[1759513626674,0.40048,4491.5,4491.3,0.00250891]
[1759513626877,2.87318818,4491.7,4491.4,0.228]
[1759513627082,2.87318818,4492.0,4491.5,0.4489]
[1759513627280,0.4004,4492.4,4492.1,1.1342]
[1759513627479,3.60818,4492.6,4492.3,1.1342]
[1759513627676,2.88296556,4492.5,4492.2,0.228]
[1759513627884,1.0964,4492.1,4491.6,1.1342]
[1759513628084,0.40048,4491.4,4491.0,3.2078]
[1759513628284,0.40048,4491.4,4490.6,1.1342]
[1759513628285,3.60828,4491.4,4490.6,1.1342]
[1759513628475,3.60828,4491.4,4490.3,3.2078]
[1759513628476,0.40054,4490.7,4490.3,3.2078]
[1759513628673,13.15375102,4491.4,4490.3,3.2078]
[1759513628674,3.2078,4490.9,4490.4,0.228]
[1759513628879,3.24889102,4490.6,4490.5,0.228]
[1759513629085,0.40056,4490.6,4490.5,0.228]
[1759513629276,1.49694,4490.8,4490.5,0.228]
[1759513629579,3.2428429,4490.7,4490.5,0.00255323]
[1759513629782,1.0964,4490.6,4490.5,0.00255323]
[1759513629979,0.40063,4489.8,4489.7,3.2078]
[1759513630174,1.0964,4489.8,4489.7,0.228]
[1759513630376,1.0964,4489.4,4488.6,0.40073]
[1759513630686,3.2078,4489.8,4488.9,1.53491]
[1759513630886,0.40064,4489.7,4489.0,0.228]
[1759513631080,2.93190719,4489.5,4489.0,0.63051241]
[1759513631283,2.93385407,4489.7,4489.1,0.228]
[1759513631486,0.00194688,4489.7,4489.6,1.1342]
[1759513631779,0.00194688,4489.7,4489.6,1.3622]
[1759513632282,1.0964,4491.2,4490.4,1.1342]
[1759513632479,0.40059,4490.2,4489.6,1.1342]
[1759513632685,0.40061,4490.0,4489.7,1.1342]
[1759513632885,3.2078,4490.1,4489.4,4.342]
[1759513633182,0.94964237,4489.9,4489.6,1.1342]
[1759513633387,1.0964,4491.4,4489.8,3.2078]
[1759513633584,1.0964,4490.9,4490.7,3.2078]
[1759513633782,1.0964,4490.9,4490.8,0.228]
[1759513634088,0.4474,4490.5,4490.2,3.2078]
[1759513634280,1.0964,4490.4,4490.3,0.228]
[1759513634584,1.0964,4490.4,4490.2,3.2078]
[1759513634880,1.0964,4490.4,4489.5,1.18827612]
[1759513634881,0.4474,4490.0,4489.3,37.9418]
[1759513635081,0.4500339,4490.5,4490.4,0.40057]
[1759513635280,0.0026339,4490.5,4490.4,0.40057]
[1759513635477,0.0026339,4490.5,4490.4,0.62857]
[1759513635981,0.4474,4492.0,4491.4,0.40048]
[1759513636181,3.2078,4491.6,4490.4,3.2078]
[1759513636386,0.4474,4489.5,4489.1,3.2078]
[1759513636589,0.4474,4489.5,4489.2,0.228]
[1759513636889,0.4474,4489.5,4489.3,0.40067]
[1759513637184,1.0964,4489.4,4489.3,0.40067]
[1759513637887,2.84193945,4489.4,4489.3,0.228]
[1759513638081,0.44896714,4489.5,4489.4,0.40066]
[1759513638485,0.00156714,4489.5,4489.4,5.40066]
[1759513639186,0.4474,4490.5,4489.4,5.0]
[1759513639486,1.0964,4490.4,4490.3,3.60837]
[1759513639688,1.0964,4490.4,4490.3,3.83637]
[1759513639985,1.0964,4490.4,4490.3,8.83637]
[1759513640181,1.09809348,4490.4,4490.3,3.2078]
[1759513640386,1.09809348,4490.4,4490.3,3.4358]
[1759513641177,0.00169348,4490.4,4490.3,8.4358]
[1759513641380,1.09809348,4490.4,4490.3,8.4358]
[1759513641584,1.09809348,4490.4,4490.3,3.2078]
[1759513641780,0.00169348,4490.4,4490.3,8.4358]
[1759513642179,1.0964,4491.1,4490.4,1.00144]
[1759513642483,0.4474,4492.0,4491.9,0.40044]
[1759513642682,0.4474,4492.5,4492.1,0.40041]
[1759513642884,0.4474,4492.0,4491.8,3.2078]
[1759513643084,1.0964,4491.9,4491.7,0.40045]
[1759513643286,1.09808216,4491.9,4491.8,3.4358]
[1759513643484,0.00168216,4491.9,4491.8,3.2078]
[1759513643688,1.09808216,4491.9,4491.8,3.4358]
[1759513643891,0.00168216,4491.9,4491.8,3.4358]
[1759513644384,0.00168216,4491.9,4491.8,8.4358]
[1759513644787,1.09808216,4491.9,4491.8,3.37222321]
[1759513645090,1.09808216,4491.9,4491.8,3.2078]
[1759513645383,1.09808216,4491.9,4491.8,3.4358]
[1759513645588,1.09808216,4491.9,4491.8,3.99668709]
[1759513645885,0.00168216,4491.9,4491.8,3.99668709]
[1759513646186,1.09808216,4491.9,4491.8,3.76868709]
[1759513646387,1.09808216,4491.9,4491.8,3.99668709]
[1759513646891,1.09808216,4491.9,4491.8,3.4358]
[1759513647287,1.09808216,4491.9,4491.2,2.18953612]
[1759513647288,0.00168216,4491.9,4491.3,3.2078]
[1759513647593,1.0964,4491.4,4491.3,3.60829]
[1759513647790,1.0964,4491.4,4491.3,3.4358]
[1759513647991,1.0964,4491.4,4491.3,3.59893789]
[1759513648192,0.00168216,4491.9,4491.4,1.00122]
[1759513648391,0.00168216,4491.9,4491.8,3.60825]
[1759513648593,1.09808216,4491.9,4491.8,3.83525]
[1759513648791,1.09808216,4491.9,4491.8,8.83525]
[1759513648792,0.00168216,4491.9,4491.8,8.83525]
[1759513648995,1.09808216,4491.9,4491.8,3.4348]
[1759513649187,0.00168216,4491.9,4491.8,3.4348]
[1759513649389,1.5438,4492.5,4492.4,0.40039]
[1759513649691,1.94414,4493.0,4492.4,0.227]
[1759513649886,1.5438,4493.0,4492.9,3.2078]
[1759513650091,1.5438,4493.5,4493.4,0.4003]
[1759513650288,1.54629192,4493.5,4493.4,3.43748041]
[1759513650483,1.54629192,4493.5,4493.4,0.00268041]
[1759513650683,1.54629192,4493.5,4493.4,0.22968041]
[1759513652290,1.44699,4492.4,4492.3,3.2078]
[1759513652588,1.44699,4492.4,4492.3,3.4348]
[1759513652788,4.65479,4492.4,4492.3,0.227]
[1759513652990,1.0466,4491.4,4491.3,0.16313789]
[1759513653181,1.0466,4491.4,4491.3,3.43742689]
[1759513653587,1.44708,4491.4,4491.3,0.00262689]
[1759513653786,1.44708,4491.4,4491.3,0.22962689]
[1759513653990,1.0466,4491.4,4491.3,3.43742689]
[1759513654591,0.4391,4492.0,4491.8,0.40044]
[1759513654788,1.4857,4492.0,4491.9,0.227]
[1759513654988,1.4857,4492.0,4491.9,0.62744]
[1759513655189,1.4857,4492.5,4492.3,0.4004]
[1759513655383,1.4857,4492.5,4492.4,0.227]
[1759513655791,0.4391,4492.5,4492.4,0.227]
[1759513656291,1.4857,4492.5,4492.4,0.227]
[1759513656695,1.88609,4492.5,4492.4,0.227]
[1759513656893,1.4857,4492.5,4492.4,0.62739]
[1759513657089,1.4857,4493.0,4492.4,0.227]
[1759513657288,1.44695,4492.9,4492.5,0.40038]
[1759513657489,1.0466,4492.9,4492.6,0.40037]
[1759513657792,0.4391,4493.0,4492.9,0.40035]
[1759513658385,1.4857,4493.0,4492.9,0.40035]
[1759513658788,0.44159192,4493.5,4492.9,5.0]
[1759513658989,0.40037,4492.7,4492.5,1.18827612]
[1759513659193,1.4857,4492.0,4491.9,0.40044]
[1759513659395,1.4857,4492.0,4491.8,3.2078]
[1759513659396,1.0466,4491.9,4491.8,3.2078]
[1759513659595,1.0466,4491.9,4491.8,3.4348]
[1759513660396,1.0466,4491.9,4491.8,0.227]
[1759513661189,1.0466,4491.9,4491.8,3.4348]
[1759513661389,1.0466,4491.9,4491.3,34.72662689]
[1759513661390,1.4857,4491.5,4491.4,3.2078]
[1759513661585,1.88617,4491.5,4491.4,0.227]
[1759513661985,1.0466,4491.4,4491.3,0.00262689]
[1759513662189,1.0466,4491.4,4491.3,3.43742689]
[1759513662585,0.4391,4491.5,4491.3,3.43742689]
[1759513662586,0.4391,4491.5,4491.4,0.40048]
[1759513662789,1.4857,4492.0,4491.3,3.43742689]
[1759513662988,1.4857,4492.0,4491.9,3.2078]
[1759513663190,1.4857,4492.0,4491.9,3.4348]
[1759513663386,1.0466,4492.4,4492.3,0.4004]
[1759513663588,1.0466,4492.4,4492.3,0.6274]
[1759513663795,1.0466,4492.4,4492.3,0.227]
[1759513664191,1.0466,4492.4,4491.9,3.2078]
[1759513664192,1.447,4492.4,4492.0,1.18827612]
[1759513664393,1.0466,4492.4,4492.3,0.4004]
[1759513664796,1.0466,4492.3,4492.1,1.41527612]
[1759513664992,0.4391,4492.5,4492.1,1.41527612]
[1759513665199,1.0466,4492.4,4492.3,0.4004]
[1759513665498,1.0466,4492.4,4492.3,3.2078]
[1759513666297,1.0466,4492.4,4492.3,4.39607612]
[1759513667201,1.0466,4492.4,4492.3,3.2078]
[1759513667400,1.0466,4492.4,4492.3,3.4348]
[1759513667997,0.4391,4493.0,4492.3,8.4348]
[1759513667998,1.0466,4492.9,4492.3,8.4348]
[1759513668194,1.0466,4492.9,4492.8,1.59218501]
[1759513668394,1.48819192,4493.5,4492.8,3.83516]
[1759513668591,1.4857,4494.0,4493.9,0.40026]
[1759513668800,1.4857,4494.0,4493.9,1.81892172]
[1759513669300,1.4857,4494.0,4493.9,1.41866172]
[1759513669496,1.48822807,4494.0,4493.9,1.41866172]
[1759513670096,1.48822807,4494.0,4493.9,3.4348]
[1759513670599,1.0466,4493.6,4493.5,1.59021354]
[1759513670801,0.44162807,4494.0,4493.5,0.227]
[1759513671000,0.44162807,4494.0,4493.8,0.40027]
[1759513671202,0.84187807,4494.0,4493.9,0.227]
[1759513671396,5.09627807,4494.0,4493.9,0.227]
[1759513671601,0.4391,4493.5,4493.3,0.40031]
[1759513671805,1.0466,4493.9,4493.8,0.40026]
[1759513672003,1.0466,4493.9,4493.8,0.62726]
[1759513672302,1.0466,4493.9,4493.8,0.227]
[1759513673000,1.4857,4493.5,4493.4,3.2078]
[1759513673197,1.4857,4493.5,4493.4,3.4348]
[1759513673399,0.44162807,4494.0,4493.4,3.4348]
[1759513673400,1.48822807,4494.0,4493.9,0.40026]
[1759513673698,1.48822807,4494.0,4493.1,0.16525358]
[1759513673699,1.0466,4493.7,4493.6,1.19043498]
[1759513673900,1.0466,4493.7,4493.1,0.227]
[1759513673901,0.40029,4493.6,4493.1,0.227]
[1759513674104,0.40032,4493.2,4493.1,0.227]
[1759513674295,1.44692,4493.2,4493.1,0.227]
[1759513674496,1.44879611,4493.2,4493.1,0.227]
[1759513674994,1.04847611,4493.2,4493.1,0.227]
[1759513675710,1.0466,4492.2,4492.1,1.58692545]
[1759513676003,1.0466,4492.2,4492.1,3.4348]
[1759513676203,1.0466,4492.2,4492.1,0.227]
[1759513677403,0.83949,4492.5,4492.1,0.227]
[1759513677605,1.0466,4492.4,4492.1,0.227]
[1759513677901,0.40045,4491.9,4491.5,1.58692545]
[1759513678096,0.40045,4491.9,4491.8,3.2078]
[1759513678097,1.0466,4491.9,4491.8,3.2078]
[1759513678302,1.0466,4492.5,4491.9,1.0011]
[1759513678499,1.0466,4492.5,4491.8,4.79472545]
[1759513678500,1.0466,4492.5,4492.3,3.6082]
[1759513678696,1.0466,4492.5,4492.4,0.227]
[1759513678896,0.4391,4493.0,4492.4,0.227]
[1759513679103,1.4857,4493.0,4492.9,3.2078]
[1759513679302,1.4857,4493.0,4492.9,0.227]
[1759513680607,1.0466,4493.0,4492.9,3.4348]
[1759513680904,0.00187611,4493.2,4493.0,0.40034]
[1759513681109,0.4391,4494.0,4493.9,0.40026]
[1759513681304,0.4391,4495.0,4494.4,0.40022]
[1759513681506,0.4391,4495.0,4494.5,3.4348]
[1759513681814,3.2078,4495.6,4494.5,3.4348]
[1759513682008,0.44097788,4495.5,4494.5,3.43691982]
[1759513682309,0.85007,4495.0,4494.5,0.00211982]
[1759513682509,0.85007,4495.0,4494.6,0.227]
[1759513682709,0.4499,4495.0,4494.7,0.227]
[1759513682907,0.4499,4495.0,4494.8,0.227]
[1759513683205,0.85007,4495.0,4494.8,0.227]
[1759513683410,0.85007,4495.0,4494.5,0.00211982]
[1759513683411,1.1256,4494.6,4494.5,0.00211982]
[1759513683610,1.1256,4494.6,4494.5,0.22911982]
[1759513684007,6.1256,4494.6,4494.5,0.22911982]
[1759513684204,1.1256,4493.4,4493.1,4.79848186]
[1759513684406,0.4499,4493.5,4493.3,0.40031]
[1759513684608,0.4499,4494.0,4493.7,0.40027]
[1759513684808,1.97576,4494.0,4493.8,0.227]
[1759513685107,5.18356,4494.0,4493.8,0.227]
[1759513685404,0.4499,4493.0,4492.8,3.2078]
[1759513685597,0.4499,4493.0,4492.9,0.227]
[1759513685598,1.5755,4493.0,4492.9,0.227]
[1759513686610,7.71590653,4493.0,4492.9,0.227]
[1759513687406,1.5755,4492.0,4491.8,3.2078]
[1759513687712,1.1256,4491.4,4491.3,3.2078]
[1759513688407,0.00252181,4491.4,4491.3,3.21021209]
[1759513688609,0.00252181,4491.4,4491.3,4.18611209]
[1759513689000,1.12812181,4491.4,4491.3,3.21021209]
[1759513689209,1.12812181,4491.4,4491.3,0.00241209]
[1759513690207,1.12812181,4491.4,4490.1,3.2078]
[1759513690208,0.40053,4490.9,4490.1,3.2078]
[1759513690413,1.1256,4490.9,4490.2,0.227]
[1759513691210,0.00252181,4491.4,4491.2,0.40049]
[1759513691515,1.12812181,4491.4,4491.3,0.227]
[1759513691910,6.12812181,4491.4,4490.8,3.2078]
[1759513692207,0.85042,4491.0,4490.9,0.227]
[1759513692407,0.4499,4490.5,4490.2,0.00157548]
[1759513692607,4.04329803,4491.0,4490.8,0.40054]
[1759513692813,1.1256,4491.0,4490.9,0.227]
[1759513693008,1.1256,4491.3,4491.0,0.40051]
[1759513693207,1.1256,4491.3,4491.1,0.40051]
[1759513693403,0.00252181,4491.4,4490.9,3.83532]
[1759513693605,1.1256,4491.3,4490.9,3.83532]
[1759513693807,0.00252181,4491.4,4490.9,0.227]
[1759513693808,1.97602,4491.0,4490.9,0.227]
[1759513694006,1.1256,4491.0,4490.9,0.227]
[1759513694214,1.1256,4491.0,4490.9,0.62753]
[1759513694417,1.5755,4491.0,4490.9,0.227]
[1759513694606,1.97602,4491.0,4490.9,0.227]
[1759513694812,1.1256,4490.9,4490.3,3.2078]
[1759513695009,1.1256,4490.9,4490.7,0.40054]
[1759513695207,0.00252181,4491.4,4490.8,3.4348]
[1759513695509,0.00252181,4491.4,4490.8,3.2078]
[1759513695812,0.40054,4490.8,4490.3,1.18671889]
[1759513696007,0.40054,4490.8,4490.4,0.227]
[1759513696008,0.4499,4490.5,4490.4,0.227]
[1759513696316,1.1256,4490.9,4490.6,0.40055]
[1759513696512,3.2078,4491.3,4490.9,0.40053]
[1759513696710,0.4499,4492.0,4491.0,0.227]
[1759513696914,1.1256,4491.2,4491.1,0.227]
[1759513697313,3.6577,4491.5,4490.3,4.39451889]
[1759513697513,1.1256,4490.4,4490.3,3.2078]
[1759513697811,1.5755,4491.0,4490.3,3.4348]
[1759513698012,1.1256,4491.0,4490.8,0.40053]
[1759513698216,1.1256,4491.0,4490.9,0.227]
[1759513698618,1.5755,4491.0,4490.9,0.227]
[1759513699020,0.85042,4491.0,4490.3,3.2078]
[1759513699224,0.4499,4490.5,4490.3,3.2078]
[1759513699426,0.4499,4490.5,4490.2,0.00157548]
[1759513699427,0.4499,4490.5,4490.4,0.227]
[1759513699626,1.5755,4490.5,4490.4,0.227]
[1759513699827,4.7833,4491.0,4490.4,0.227]
[1759513700029,1.5755,4491.0,4490.9,0.40053]
[1759513700331,1.1256,4491.0,4490.9,3.83533]
[1759513700722,1.1256,4491.3,4490.9,3.4348]
[1759513701030,1.1256,4491.3,4491.2,0.4005]
[1759513702139,1.81e-06,4491.4,4491.3,0.9759]
[1759513702325,1.81e-06,4491.4,4491.3,2.38961889]
[1759513702526,1.1256,4492.4,4492.3,0.4004]
[1759513702725,1.1256,4492.4,4492.3,0.227]
[1759513702927,1.1256,4491.9,4491.6,3.2078]
[1759513703127,1.1256,4491.9,4491.8,0.40044]
[1759513703530,0.00222476,4491.9,4491.8,1.37634]
[1759513703727,0.00222476,4491.9,4491.6,3.2078]
[1759513703928,0.1235,4491.0,4490.4,1.98055532]
[1759513704131,0.40058,4490.3,4489.5,1.5615]
[1759513704534,0.40064,4489.6,4489.5,1.5615]
[1759513704830,0.40067,4489.3,4488.5,0.227]
[1759513705033,3.2078,4488.7,4488.6,1.1122]
[1759513705432,3.2078,4489.4,4488.8,0.40071]
[1759513705630,3.20939516,4489.4,4489.1,1.1122]
[1759513705930,3.20939516,4489.4,4489.1,1.51288]
[1759513705931,2.86213852,4489.3,4489.1,1.51288]
[1759513706130,3.20939516,4489.4,4489.0,0.4493]
[1759513706329,3.20939516,4489.4,4489.1,1.1122]
[1759513706536,0.00159516,4489.4,4489.3,1.1122]
[1759513707232,0.00159516,4489.4,4489.1,0.227]
[1759513707432,0.40067,4489.3,4489.1,0.227]
[1759513707634,0.40067,4489.3,4489.1,1.1381]
[1759513707839,0.40071,4488.9,4488.8,0.00227561]
[1759513708134,6.47952742,4488.9,4488.8,0.00227561]
[1759513709338,6.07881742,4488.9,4488.8,0.00227561]
[1759513710040,6.07881742,4488.9,4488.8,1.14037561]
[1759513710334,0.00159516,4489.4,4489.3,1.1381]
[1759513710335,3.20939516,4489.4,4489.3,1.1381]
[1759513710536,0.40053,4490.9,4489.3,1.1381]
[1759513710741,3.2078,4489.9,4489.6,1.1381]
[1759513710943,0.227,4489.8,4487.0,0.4487]
[1759513711235,3.2078,4488.3,4487.1,1.1381]
[1759513711432,0.40078,4488.1,4487.2,0.40085]
[1759513711637,0.013,4488.0,4487.4,0.40083]
[1759513711937,3.16422007,4488.0,4487.9,0.02505136]
[1759513712241,2.93941434,4488.0,4487.9,0.02505136]
[1759513713733,7.93941434,4488.0,4487.9,0.02505136]
[1759513714240,2.93941434,4488.0,4487.9,0.02505136]
[1759513714543,3.16641434,4488.0,4487.9,1.11415136]
[1759513714740,2.93941434,4488.0,4487.9,1.11415136]
[1759513715245,2.93941434,4488.0,4487.9,0.02505136]
[1759513715738,2.93941434,4488.0,4487.9,1.11415136]
[1759513716044,0.40089,4486.9,4486.6,1.0891]
[1759513716339,2.95647279,4486.8,4486.6,1.0891]
[1759513716544,2.95647279,4486.8,4486.5,3.9565]
[1759513716743,3.2078,4487.3,4487.0,0.425]
[1759513716941,0.40087,4487.1,4487.0,1.09147197]
[1759513717243,3.81446679,4487.1,4484.5,1.57834573]
[1759513717539,3.2078,4484.7,4484.5,0.425]
[1759513717733,3.2078,4484.7,4484.6,1.0891]
[1759513717938,3.2078,4484.7,4484.6,4.2969]
[1759513718138,3.20994209,4484.7,4484.6,4.29854204]
[1759513718341,1.00224,4486.8,4484.6,8.20944204]
[1759513718547,0.40098,4485.9,4485.1,1.0891]
[1759513718745,3.2078,4486.0,4485.3,1.0891]
[1759513718943,0.40103,4485.3,4484.6,0.00164204]
[1759513719138,0.40105,4485.1,4484.6,0.00164204]
[1759513719341,0.40105,4485.1,4485.0,0.425]
[1759513719342,0.00211503,4485.1,4485.0,0.425]
[1759513719548,0.00211503,4485.1,4485.0,1.5141]
[1759513719740,0.00211503,4485.1,4485.0,9.7219]
[1759513719941,0.00211503,4485.1,4485.0,4.7219]
[1759513720136,0.00211503,4485.1,4485.0,1.5141]
[1759513720343,0.00211503,4485.1,4485.0,0.03139326]
[1759513720549,6.17299858,4485.1,4485.0,1.12049326]
[1759513720847,6.17299858,4485.1,4485.0,1.54549326]
[1759513721050,2.96519858,4485.1,4485.0,1.54549326]
[1759513721245,0.00211503,4485.1,4485.0,1.54549326]
[1759513721445,0.00211503,4485.1,4485.0,1.55788036]
[1759513723548,3.2078,4486.4,4485.2,1.0891]
[1759513723746,3.2078,4486.4,4485.6,1.0891]
[1759513723946,3.2078,4486.4,4486.0,0.425]
[1759513724144,3.2078,4486.4,4485.6,1.0891]
[1759513724341,0.40095,4486.1,4486.0,0.04378036]
[1759513724551,0.4034785,4486.1,4486.0,0.04378036]
[1759513724754,3.35098053,4486.1,4486.0,0.04378036]
[1759513724951,2.95003053,4486.1,4486.0,0.04378036]
[1759513725546,2.95003053,4486.1,4486.0,1.13288036]
[1759513725745,2.95003053,4486.1,4486.0,1.55788036]
[1759513725946,2.95003053,4486.1,4486.0,1.13288036]
[1759513726152,2.95003053,4486.1,4486.0,0.04378036]
[1759513726347,2.95003053,4486.1,4486.0,1.13288036]
[1759513726652,2.95003053,4486.1,4486.0,0.04378036]
[1759513728649,2.95003053,4486.1,4486.0,1.13288036]
[1759513729057,3.17703053,4486.1,4486.0,0.04378036]
[1759513729743,2.95003053,4486.1,4486.0,1.13288036]
[1759513729949,3.17703053,4486.1,4486.0,1.55788036]
[1759513730345,3.17703053,4486.1,4486.0,0.04378036]
[1759513730853,3.57798053,4486.1,4486.0,0.04378036]
[1759513731246,2.95003053,4486.1,4486.0,1.55788036]
[1759513731645,0.0025285,4486.1,4486.0,1.55788036]
[1759513731851,0.0025285,4486.1,4486.0,6.55788036]
[1759513732055,0.0025285,4486.1,4486.0,1.55788036]
[1759513732356,2.96601014,4486.1,4486.0,1.55788036]
[1759513733052,2.96601014,4486.1,4486.0,0.04378036]
[1759513733446,3.68420916,4486.1,4486.0,0.04378036]
[1759513733759,3.19301014,4486.1,4486.0,0.04378036]
[1759513733947,3.19301014,4486.1,4486.0,1.13288036]
[1759513734146,2.96601014,4486.1,4486.0,1.13288036]
[1759513734346,8.68459732,4486.1,4486.0,0.04378036]
[1759513734556,3.68459732,4486.1,4486.0,1.13288036]
[1759513734756,2.96601014,4486.1,4486.0,1.55788036]
[1759513734954,3.36696014,4486.1,4486.0,1.55788036]
[1759513735153,2.96601014,4486.1,4486.0,1.55788036]
[1759513735956,0.0025285,4486.1,4486.0,1.55788036]
[1759513736159,2.86506057,4486.1,4486.0,1.55788036]
[1759513736461,2.86506057,4486.1,4486.0,1.13288036]
[1759513736953,2.86506057,4486.1,4486.0,1.55788036]
[1759513737854,2.86506057,4486.1,4486.0,1.13288036]
[1759513738058,2.86506057,4486.1,4486.0,1.55788036]
[1759513738256,3.36098168,4486.1,4486.0,1.55788036]
[1759513739652,3.58798168,4486.1,4486.0,1.55788036]
[1759513740060,0.49844961,4486.1,4486.0,1.55788036]
[1759513740256,0.49872309,4486.1,4486.0,1.55788036]
[1759513740764,0.0025285,4486.1,4486.0,6.55788036]
[1759513741560,1.00198,4488.0,4487.1,1.0891]
[1759513741754,0.49663097,4487.9,4487.1,1.0891]
[1759513741954,2.95209896,4487.4,4487.3,1.46865]
[1759513742156,0.40081,4487.7,4487.6,1.0678]
[1759513742353,0.49660574,4487.7,4487.6,0.40082]
[1759513742554,0.00189849,4487.7,4487.6,1.51240036]
[1759513742755,0.00189849,4487.7,4487.6,1.11158036]
[1759513743156,2.9301969,4487.7,4487.6,0.04378036]
[1759513743358,3.42668351,4487.7,4487.6,0.04378036]
[1759513743556,3.42668351,4487.7,4487.6,1.11158036]
[1759513743862,3.65368351,4487.7,4487.6,0.04378036]
[1759513744059,3.82749351,4487.7,4487.6,1.11158036]
[1759513744355,0.00189849,4487.7,4487.6,1.11158036]
[1759513745960,3.2078,4488.1,4488.0,1.4986]
[1759513746164,3.2078,4488.1,4488.0,1.7256]
[1759513746560,3.2078,4488.1,4488.0,1.76938036]
[1759513746856,0.40082,4487.6,4487.4,1.0678]
[1759513747061,1.00212,4487.3,4486.8,1.0678]
[1759513747260,3.60868,4486.9,4486.8,0.60155]
[1759513747458,0.40095,4486.2,4486.0,0.4308]
[1759513747657,0.40104,4485.1,4485.0,0.4308]
[1759513747865,0.40104,4485.1,4485.0,0.43284179]